bitfinex/quotes_ETHUSD_20240916
["timestamp","ask_amount","ask_price","bid_price","bid_amount"]
[1726482342162,4.34574,2301.1,2301.0,0.0377383]
[1726482343214,9.560615,2301.1,2301.0,0.0377383]
[1726482343429,16.906355,2301.1,2301.0,0.0377383]
[1726482344107,12.560615,2301.1,2301.0,0.0377383]
[1726482344272,16.906355,2301.1,2301.0,0.0377383]
[1726482344476,12.560615,2301.1,2301.0,0.0377383]
[1726482344872,16.906355,2301.1,2301.0,0.0377383]
[1726482345272,12.560615,2301.1,2301.0,0.0377383]
[1726482349477,11.69148,2301.1,2301.0,0.0377383]
[1726482349700,8.69148,2301.1,2301.0,0.0377383]
[1726482360359,13.03722,2301.1,2301.0,0.0377383]
[1726482364351,17.29187629,2301.1,2301.0,0.0377383]
[1726482364731,24.63761629,2301.1,2301.0,0.0377383]
[1726482364943,27.53593592,2301.1,2301.0,0.0377383]
[1726482365531,36.46367592,2301.1,2301.0,0.0377383]
[1726482365928,34.01036539,2301.1,2301.0,0.0377383]
[1726482366232,17.38828,2300.4,2300.3,0.0377383]
[1726482366460,27.25766112,2300.4,2300.3,0.0377383]
[1726482366667,31.83966112,2300.4,2300.3,0.0377383]
[1726482366860,31.83966112,2300.4,2299.6,0.0377383]
[1726482366861,22.19490576,2299.7,2299.6,0.0377383]
[1726482367179,16.04517,2299.7,2299.6,0.0377383]
[1726482367472,16.479414,2299.7,2299.6,0.0377383]
[1726482368279,12.131024,2299.7,2299.6,0.0377383]
[1726482368607,11.69678,2299.7,2299.6,0.0377383]
[1726482375751,16.04517,2299.7,2299.6,0.0377383]
[1726482377202,11.69678,2299.7,2299.6,0.0377383]
[1726482381197,16.04517,2299.7,2299.6,0.0377383]
[1726482381555,11.69678,2299.7,2299.6,0.0377383]
[1726482381867,13.301293,2299.7,2299.6,0.0377383]
[1726482383355,11.69678,2299.7,2299.6,0.0377383]
[1726482386803,16.04517,2299.7,2299.6,0.0377383]
[1726482390026,20.39356,2299.7,2299.6,0.0377383]
[1726482390226,11.69678,2299.7,2299.6,0.0377383]
[1726482390576,7.34839,2299.7,2299.6,0.0377383]
[1726482391279,11.69678,2299.7,2299.6,0.0377383]
[1726482392318,4.34839,2299.7,2299.6,0.0377383]
[1726482394029,8.69658,2299.8,2299.6,0.0377383]
[1726482394175,4.34839,2299.7,2299.6,0.0377383]
[1726482394983,8.69678,2299.7,2299.6,0.0377383]
[1726482403540,8.69678,2299.7,2299.6,2.3670383]
[1726482404395,8.69678,2299.7,2299.6,0.0377383]
[1726482405701,10.001263,2299.7,2299.6,0.0377383]
[1726482406349,8.69678,2299.7,2299.6,0.0377383]
[1726482409844,4.34839,2299.7,2299.6,0.0377383]
[1726482410156,4.34797,2300.0,2299.6,2.4786383]
[1726482410299,8.69594,2300.0,2299.7,3.90401619]
[1726482410504,4.34775,2300.1,2299.8,2.4293]
[1726482410731,0.72096536,2300.4,2300.0,2.4293]
[1726482410732,4.34721,2300.4,2300.0,2.4293]
[1726482410915,4.34716,2300.4,2300.2,2.3374]
[1726482411115,4.34725,2300.3,2300.2,2.3374]
[1726482412418,4.34725,2300.3,2300.2,2.33605567]
[1726482412622,4.34746,2300.2,2299.7,3.90401619]
[1726482412813,0.869441,2300.3,2299.6,0.0377383]
[1726482412814,4.3482,2299.8,2299.6,0.0377383]
[1726482413028,4.34811,2299.9,2299.6,0.0377383]
[1726482413232,4.34839,2299.7,2299.6,0.0377383]
[1726482413553,4.34811,2299.9,2299.6,0.0377383]
[1726482413554,4.34822,2299.8,2299.6,0.0377383]
[1726482414547,4.34811,2299.9,2299.7,3.90401619]
[1726482415513,4.34811,2299.9,2299.8,2.3453]
[1726482415847,8.69552,2300.1,2299.8,2.3453]
[1726482416357,4.34776,2300.1,2299.8,2.3453]
[1726482416850,8.69548,2300.1,2299.8,2.3453]
[1726482417256,4.34746,2300.2,2300.0,2.3082]
[1726482417404,7.47,2300.4,2300.0,2.3082]
[1726482417610,4.34726,2300.3,2300.0,2.3082]
[1726482417912,4.34745,2300.2,2300.0,2.3082]
[1726482420573,4.34728,2300.3,2300.0,2.3082]
[1726482420856,4.34755,2300.2,2300.0,2.3082]
[1726482421764,4.34763,2300.1,2300.0,2.3082]
[1726482422925,4.34755,2300.2,2300.0,2.3082]
[1726482423422,4.34735,2300.3,2300.0,2.3082]
[1726482423630,4.34719,2300.4,2300.0,2.3082]
[1726482423826,4.34719,2300.4,2300.2,2.4765]
[1726482424739,8.69435,2300.4,2300.2,2.4765]
[1726482425060,4.34716,2300.4,2300.2,2.4765]
[1726482425275,8.69432,2300.4,2300.2,2.4765]
[1726482425866,4.34716,2300.4,2300.2,2.4765]
[1726482426071,8.69432,2300.4,2300.2,2.4765]
[1726482426422,8.69433,2300.4,2300.2,2.4765]
[1726482426759,4.34716,2300.4,2300.2,2.4765]
[1726482427163,4.34725,2300.3,2300.2,2.4765]
[1726482428752,4.34757,2300.2,2300.0,2.3675]
[1726482428957,4.34763,2300.1,2300.0,2.3675]
[1726482432451,4.34757,2300.2,2300.0,2.3675]
[1726482432975,4.34755,2300.2,2300.0,2.3675]
[1726482433174,8.69512,2300.2,2300.0,2.3675]
[1726482433471,4.34755,2300.2,2300.0,2.3675]
[1726482433681,8.69515,2300.2,2300.0,2.3675]
[1726482434081,8.69514,2300.2,2300.0,2.3675]
[1726482434378,3.0,2300.7,2300.1,3.90401619]
[1726482434555,4.34715,2300.4,2300.2,2.2801]
[1726482434883,4.34715,2300.4,2300.3,3.90401619]
[1726482436355,4.34677,2300.6,2300.3,3.90401619]
[1726482436558,8.69323,2300.7,2300.5,6.36461619]
[1726482436776,4.34622,2300.9,2300.5,6.36461619]
[1726482436957,4.34622,2300.9,2300.7,3.90401619]
[1726482437283,8.69244,2300.9,2300.7,3.90401619]
[1726482437579,4.34579,2301.1,2300.7,3.90401619]
[1726482437793,4.34579,2301.1,2300.9,3.90401619]
[1726482437942,4.34579,2301.1,2301.0,2.3049]
[1726482438755,8.69161,2301.1,2301.0,2.3049]
[1726482438956,4.34593,2301.0,2300.8,2.2704]
[1726482439384,4.34612,2300.9,2300.7,3.90401619]
[1726482440956,0.869161,2301.1,2300.7,3.90401619]
[1726482441161,4.34537,2301.3,2300.9,6.34111619]
[1726482441477,4.34537,2301.3,2301.2,3.90401619]
[1726482441664,5.214441,2301.3,2301.2,3.90401619]
[1726482441998,5.214441,2301.3,2301.0,3.90401619]
[1726482444314,4.34537,2301.3,2301.0,3.90401619]
[1726482444594,4.34534,2301.4,2301.1,2.4989]
[1726482444809,4.34529,2301.4,2301.1,2.4989]
[1726482445100,4.34545,2301.3,2301.1,2.4989]
[1726482448277,4.34509,2301.5,2301.2,3.90401619]
[1726482449016,4.34519,2301.4,2301.2,3.90401619]
[1726482449805,4.34509,2301.5,2301.2,3.90401619]
[1726482450013,8.69019,2301.5,2301.2,3.90401619]
[1726482450213,4.34509,2301.5,2301.2,3.90401619]
[1726482450417,4.34481,2301.6,2301.2,3.90401619]
[1726482450617,4.3444,2301.9,2301.5,3.90401619]
[1726482450618,4.34464,2301.7,2301.5,3.90401619]
[1726482451821,8.68938,2301.7,2301.5,3.90401619]
[1726482452506,4.34464,2301.7,2301.5,3.90401619]
[1726482452676,8.68936,2301.7,2301.5,3.90401619]
[1726482452876,4.34464,2301.7,2301.5,3.90401619]
[1726482453708,8.68934,2301.7,2301.5,3.90401619]
[1726482454078,4.3448,2301.6,2301.5,3.90401619]
[1726482455388,4.3451,2301.5,2301.3,6.36471619]
[1726482455588,4.34549,2301.3,2300.9,6.15911619]
[1726482456388,4.34549,2301.3,2301.1,3.90401619]
[1726482457118,4.34518,2301.4,2301.1,3.90401619]
[1726482457723,8.69048,2301.4,2301.1,3.90401619]
[1726482458238,4.34518,2301.4,2301.1,3.90401619]
[1726482458392,8.6905,2301.4,2301.1,3.90401619]
[1726482459323,8.6905,2301.4,2301.2,2.2685]
[1726482459507,4.34518,2301.4,2301.2,2.2685]
[1726482460602,4.34537,2301.3,2301.2,2.2685]
[1726482460809,4.34537,2301.3,2301.1,3.90401619]
[1726482461196,4.34521,2301.4,2301.1,3.90401619]
[1726482463194,8.69049,2301.4,2301.1,3.90401619]
[1726482463890,4.34583,2301.1,2300.9,3.90401619]
[1726482464096,4.3459,2301.1,2300.9,3.90401619]
[1726482465325,4.34561,2301.2,2300.9,3.90401619]
[1726482466433,4.34584,2301.1,2300.9,3.90401619]
[1726482467523,4.34546,2301.3,2301.0,2.4649]
[1726482467696,4.34557,2301.2,2301.1,3.90401619]
[1726482470309,4.34546,2301.3,2301.1,3.90401619]
[1726482471733,4.34513,2301.5,2301.2,2.3083]
[1726482471938,4.3451,2301.5,2301.3,3.90401619]
[1726482472934,4.34518,2301.4,2301.2,2.3083]
[1726482476536,4.34537,2301.3,2301.2,2.3083]
[1726482476886,4.34537,2301.3,2300.9,3.90401619]
[1726482476887,4.34555,2301.2,2300.9,3.90401619]
[1726482477165,4.34575,2301.1,2300.9,3.90401619]
[1726482477851,4.34575,2301.1,2300.8,2.3237]
[1726482478031,4.34575,2301.1,2300.7,11.30401619]
[1726482478231,8.69162,2301.1,2300.7,11.30401619]
[1726482478426,4.34596,2301.0,2300.7,11.30401619]
[1726482478751,4.34641,2300.8,2300.6,2.3972]
[1726482479653,4.34604,2301.0,2300.7,3.90401619]
[1726482480378,4.34568,2301.2,2301.0,2.473]
[1726482481166,4.34539,2301.3,2301.1,3.90401619]
[1726482481380,4.34516,2301.5,2301.1,4.83144874]
[1726482481668,4.34516,2301.5,2301.4,3.90401619]
[1726482483380,4.34488,2301.6,2301.4,3.90401619]
[1726482483669,4.34444,2301.8,2301.5,2.3549]
[1726482483981,4.3447,2301.7,2301.5,2.3549]
[1726482484181,4.34444,2301.8,2301.6,3.90401619]
[1726482484473,4.34426,2301.9,2301.6,3.90401619]
[1726482485187,4.34417,2302.0,2301.8,3.90401619]
[1726482485335,4.34417,2302.0,2301.9,2.3336]
[1726482486380,4.34388,2302.1,2301.9,2.3336]
[1726482486540,4.34388,2302.1,2302.0,3.90401619]
[1726482486740,4.34378,2302.2,2302.0,3.90401619]
[1726482486935,9.12575183,2302.2,2302.0,3.90401619]
[1726482487374,4.34385,2302.1,2302.0,3.90401619]
[1726482490131,4.78193183,2302.2,2302.0,3.90401619]
[1726482490329,8.68756,2302.2,2302.0,3.90401619]
[1726482490516,4.34385,2302.1,2302.0,3.90401619]
[1726482491197,5.212613,2302.1,2301.9,2.3336]
[1726482491395,4.34385,2302.1,2302.0,3.90401619]
[1726482491616,4.34378,2302.2,2302.0,3.90401619]
[1726482492327,8.68754,2302.2,2302.0,3.90401619]
[1726482492487,4.34376,2302.2,2302.0,3.90401619]
[1726482492893,8.68758,2302.2,2302.0,3.90401619]
[1726482493103,8.68753,2302.2,2302.0,3.90401619]
[1726482493789,4.34376,2302.2,2302.0,3.90401619]
[1726482495228,8.68755,2302.2,2302.0,3.90401619]
[1726482495401,4.34376,2302.2,2302.0,3.90401619]
[1726482495737,4.3811383,2302.4,2302.0,3.90401619]
[1726482495738,4.3811283,2302.4,2302.0,4.52777781]
[1726482495903,4.3811283,2302.4,2302.2,3.90401619]
[1726482496103,4.3811283,2302.4,2302.2,6.16881619]
[1726482496413,0.0377383,2302.4,2302.2,6.84807397]
[1726482497028,0.0377383,2302.4,2302.3,4.34348]
[1726482501158,0.0377383,2302.4,2302.3,6.60188]
[1726482501509,0.0377383,2302.4,2302.3,11.03222568]
[1726482501755,0.0377383,2302.4,2302.3,16.93215583]
[1726482501923,0.0377383,2302.4,2302.3,13.02813964]
[1726482502123,0.0377383,2302.4,2302.3,16.93215583]
[1726482502323,0.0377383,2302.4,2302.3,21.27563583]
[1726482503259,0.0377383,2303.0,2302.9,6.75635]
[1726482503416,0.0377383,2303.0,2302.9,15.00271619]
[1726482504616,0.0377383,2303.0,2302.9,18.00271619]
[1726482505149,0.0377383,2303.0,2302.9,15.00271619]
[1726482508991,0.0377383,2303.0,2302.9,10.66036619]
[1726482509188,0.0377383,2303.0,2302.9,12.16064681]
[1726482514542,0.0377383,2303.0,2302.9,16.50299681]
[1726482516280,4.34109,2303.6,2303.2,4.3417]
[1726482516476,4.34109,2303.6,2303.5,3.90401619]
[1726482516781,0.0377383,2303.7,2303.5,3.90401619]
[1726482516782,4.3785983,2303.7,2303.5,3.90401619]
[1726482519471,4.34103,2303.6,2303.5,3.90401619]
[1726482520587,8.7195983,2303.7,2303.5,3.90401619]
[1726482521207,4.34103,2303.6,2303.5,3.90401619]
[1726482521797,4.34103,2303.6,2303.3,3.90401619]
[1726482521798,4.3413,2303.5,2303.3,3.90401619]
[1726482522594,4.34103,2303.6,2303.3,3.90401619]
[1726482522800,4.3787183,2303.7,2303.5,3.90401619]
[1726482523482,8.7197383,2303.7,2303.5,3.90401619]
[1726482523859,0.0377383,2303.7,2303.5,6.18151619]
[1726482524270,4.3786083,2303.7,2303.5,6.18151619]
[1726482524479,0.0377383,2303.7,2303.5,6.18151619]
[1726482525952,0.0377383,2303.7,2303.5,10.52271619]
[1726482526261,0.0377383,2303.7,2303.6,1.48641162]
[1726482527089,0.0377383,2303.7,2303.6,10.2552867]
[1726482527290,0.0377383,2303.7,2303.6,12.6324867]
[1726482532801,0.0377383,2303.7,2303.6,1.48641162]
[1726482532984,0.0377383,2303.7,2303.5,3.90401619]
[1726482533595,0.0377383,2303.7,2303.5,8.24520619]
[1726482534173,0.0377383,2303.7,2303.5,3.90401619]
[1726482534401,8.7197683,2303.7,2303.5,3.90401619]
[1726482534562,5.25072513,2303.7,2303.5,3.90401619]
[1726482534891,4.34103,2303.6,2303.5,3.90401619]
[1726482535258,0.0377383,2303.7,2303.5,3.90401619]
[1726482541082,0.0377383,2303.7,2303.6,2.3375]
[1726482542081,0.0377383,2303.7,2303.5,3.90401619]
[1726482543608,0.90962613,2303.7,2303.5,3.90401619]
[1726482544220,0.0377383,2303.7,2303.5,10.64320619]
[1726482547704,0.0377383,2303.7,2303.5,6.30201619]
[1726482548215,0.0377383,2303.7,2303.5,10.64318619]
[1726482548411,0.0377383,2303.7,2303.6,4.34103]
[1726482549737,0.0377383,2303.7,2303.6,6.75433]
[1726482549913,0.0377383,2303.7,2303.6,8.25428162]
[1726482551140,0.0377383,2303.7,2303.6,2.4133]
[1726482551331,0.0377383,2303.7,2303.5,8.24517619]
[1726482553146,0.0377383,2303.7,2303.5,3.90401619]
[1726482553544,0.0377383,2303.7,2303.5,8.24519619]
[1726482556842,0.0377383,2303.7,2303.5,3.90401619]
[1726482558018,0.0377383,2303.7,2303.5,8.24521619]
[1726482558953,0.0377383,2303.7,2303.6,4.34103]
[1726482559143,0.0377383,2303.7,2303.5,11.89369481]
[1726482559459,0.0377383,2303.7,2303.5,16.23482481]
[1726482559759,0.0377383,2303.7,2303.5,11.89369481]
[1726482559955,0.0377383,2303.7,2303.6,1.95759391]
[1726482562318,0.0377383,2303.7,2303.6,2.95232116]
[1726482562954,0.0377383,2303.7,2303.6,7.29335116]
[1726482566470,0.0377383,2303.7,2303.6,6.29862391]
[1726482566652,0.0377383,2303.7,2303.6,1.95759391]
[1726482569680,0.0377383,2303.7,2303.6,4.25259391]
[1726482569886,0.0377383,2303.7,2303.6,15.88278092]
[1726482570070,0.0377383,2303.7,2303.6,16.79243078]
[1726482570242,0.0377383,2303.7,2303.6,18.22355546]
[1726482570445,0.0377383,2303.7,2303.6,19.13320532]
[1726482571518,0.0377383,2303.7,2303.6,19.54599602]
[1726482571850,0.0377383,2303.7,2303.6,19.13320532]
[1726482572053,0.0377383,2303.7,2303.6,19.54604676]
[1726482573287,0.0377383,2303.7,2303.6,18.22355546]
[1726482573790,0.0377383,2303.7,2303.6,19.54609118]
[1726482574011,0.0377383,2303.7,2303.6,18.22355546]
[1726482574299,0.0377383,2303.7,2303.6,26.21496564]
[1726482574463,0.0377383,2303.7,2303.6,29.21496564]
[1726482575054,0.0377383,2303.7,2303.6,30.04061726]
[1726482577500,0.0377383,2303.7,2303.6,22.04920708]
[1726482577685,0.0377383,2303.7,2303.6,22.5474747]
[1726482578000,0.0377383,2303.7,2303.6,21.54958856]
[1726482578202,0.0377383,2303.7,2303.6,18.54958856]
[1726482578403,0.0377383,2303.7,2303.6,9.95596465]
[1726482578565,0.0377383,2303.7,2303.6,10.19677041]
[1726482578763,0.0377383,2303.7,2303.6,10.19593708]
[1726482578963,0.0377383,2303.7,2303.6,9.05224498]
[1726482581888,0.0377383,2303.7,2303.6,13.39327498]
[1726482582137,0.0377383,2303.7,2303.6,13.91154258]
[1726482583024,0.0377383,2303.7,2303.6,16.24024258]
[1726482583425,0.0377383,2303.7,2303.6,20.58127258]
[1726482583624,0.0377383,2303.7,2303.6,27.64511888]
[1726482583827,0.0377383,2303.7,2303.6,30.63718552]
[1726482584232,0.0377383,2303.7,2303.6,30.22433899]
[1726482584391,0.0377383,2303.7,2303.6,30.22310398]
[1726482585231,0.0377383,2303.7,2303.6,27.48306565]
[1726482585440,0.0377383,2303.7,2303.6,26.57208317]
[1726482585627,0.0377383,2303.7,2303.6,30.22275063]
[1726482586247,0.0377383,2304.4,2304.1,4.34003]
[1726482586540,0.0377383,2304.4,2304.3,1.95759391]
[1726482588113,4.3772583,2304.4,2304.3,1.95759391]
[1726482588720,0.0377383,2304.4,2304.3,1.95759391]
[1726482590471,4.3772583,2304.4,2304.3,1.95759391]
[1726482590653,0.0377383,2304.4,2304.3,1.95759391]
[1726482591953,0.0377383,2304.4,2304.3,2.5873373]
[1726482595636,0.0377383,2304.4,2304.3,1.95759391]
[1726482602183,4.3772583,2304.4,2304.3,1.95759391]
[1726482602553,0.0377383,2304.4,2304.3,1.95759391]
[1726482606509,4.33998,2304.2,2303.7,6.7027]
[1726482606664,4.3401,2304.1,2303.9,1.95759391]
[1726482607708,4.34019,2304.1,2303.9,1.95759391]
[1726482607909,4.34027,2304.0,2303.6,11.74088]
[1726482608213,4.34027,2304.0,2303.5,2.331]
[1726482608214,4.34027,2304.0,2303.9,1.95759391]
[1726482608609,4.34019,2304.1,2303.9,1.95759391]
[1726482610006,4.34027,2304.0,2303.9,1.95759391]
[1726482613097,0.0377383,2304.4,2303.9,4.43009391]
[1726482613302,4.3773483,2304.4,2304.3,1.95759391]
[1726482613491,0.0377383,2304.4,2304.3,1.95759391]
[1726482614264,0.0377383,2304.4,2304.3,6.29730391]
[1726482614377,0.0377383,2304.4,2304.3,7.59569981]
[1726482614718,0.0377383,2304.4,2304.3,3.25598981]
[1726482616225,0.0377383,2304.4,2304.3,1.95759391]
[1726482619907,0.0377383,2304.4,2304.3,6.29730391]
[1726482620547,0.0377383,2304.4,2304.3,1.95759391]
[1726482621520,0.0377383,2304.4,2304.3,6.29730391]
[1726482622423,0.0377383,2304.4,2304.3,1.95759391]
[1726482622727,0.0377383,2304.4,2304.3,2.8133433]
[1726482626246,0.0377383,2304.4,2304.3,7.1530533]
[1726482628366,0.0377383,2304.4,2304.3,2.8133433]
[1726482629358,0.0377383,2304.4,2304.3,7.1530533]
[1726482631674,0.0377383,2304.4,2304.3,14.01135043]
[1726482631924,0.0377383,2305.1,2305.0,1.95759391]
[1726482632062,4.3759383,2305.1,2305.0,1.95759391]
[1726482633312,8.7141383,2305.1,2305.0,1.95759391]
[1726482633604,0.0377383,2305.1,2305.0,6.29598391]
[1726482633770,0.0377383,2305.1,2305.0,11.5071523]
[1726482633969,0.0377383,2305.1,2305.0,7.1687623]
[1726482634591,0.015,2305.7,2305.6,4.33726]
[1726482634912,0.015,2305.7,2305.5,6.29489391]
[1726482635213,0.015,2305.7,2305.6,8.67452]
[1726482635571,0.015,2305.7,2305.6,15.45638]
[1726482635911,0.0377383,2306.4,2306.0,4.3364]
[1726482636219,0.0377383,2306.4,2306.3,17.13484694]
[1726482636521,4.33428,2307.2,2306.6,4.33537]
[1726482636522,0.0106383,2306.7,2306.6,4.33537]
[1726482636814,0.0106383,2306.7,2306.6,8.56685347]
[1726482637169,0.0404115,2307.5,2306.6,8.56685347]
[1726482637170,0.0404115,2307.5,2306.7,4.33513]
[1726482637369,0.0404115,2307.5,2307.4,4.23148347]
[1726482637573,0.0404115,2307.5,2307.0,4.23148347]
[1726482637574,4.33436,2307.2,2307.0,4.23148347]
[1726482637869,4.33436,2307.2,2306.8,4.23148347]
[1726482637870,4.767726,2307.2,2306.8,4.23148347]
[1726482638095,4.33512,2306.8,2306.3,2.2849]
[1726482638298,4.33496,2306.9,2306.7,4.23148347]
[1726482639009,4.33496,2306.9,2306.1,4.23148347]
[1726482639010,4.33551,2306.6,2306.1,4.23148347]
[1726482639469,4.33576,2306.4,2306.1,4.23148347]
[1726482639854,4.3355,2306.6,2306.1,4.23148347]
[1726482640537,0.433496,2306.8,2306.1,4.23148347]
[1726482640736,4.33656,2306.0,2305.7,4.23148347]
[1726482640939,4.33703,2305.8,2305.5,4.23148347]
[1726482641138,4.33693,2305.8,2305.5,4.23148347]
[1726482641573,4.770366,2305.9,2305.5,4.23148347]
[1726482642451,4.33653,2306.0,2305.7,4.23148347]
[1726482642653,4.33672,2305.9,2305.7,4.23148347]
[1726482642857,4.33672,2305.9,2305.5,4.23148347]
[1726482642858,4.33708,2305.7,2305.5,4.23148347]
[1726482643240,8.67426,2305.7,2305.5,4.23148347]
[1726482643438,4.33726,2305.6,2305.5,4.23148347]
[1726482643639,4.337,2305.8,2305.5,4.23148347]
[1726482644478,4.33735,2305.6,2305.4,4.23148347]
[1726482644855,4.33735,2305.6,2305.0,4.33825]
[1726482644856,4.33793,2305.3,2305.0,6.58008347]
[1726482645051,0.433735,2305.6,2304.8,4.23148347]
[1726482645052,4.33839,2305.1,2304.8,4.23148347]
[1726482645576,4.33813,2305.2,2305.0,4.23148347]
[1726482645777,4.33794,2305.3,2305.0,4.23148347]
[1726482645980,4.33813,2305.2,2305.0,4.23148347]
[1726482646145,4.33765,2305.4,2305.0,4.23148347]
[1726482646339,4.33755,2305.5,2305.2,4.23148347]
[1726482647265,8.67512,2305.5,2305.2,4.23148347]
[1726482647578,4.33711,2305.7,2305.4,4.23148347]
[1726482647786,5.1429251,2306.3,2305.4,4.23148347]
[1726482647787,4.33698,2305.8,2305.4,4.23148347]
[1726482647988,4.33718,2305.7,2305.4,4.23148347]
[1726482648172,4.33718,2305.7,2305.4,4.94223148]
[1726482648852,4.33728,2305.6,2305.4,4.94223148]
[1726482649054,4.33745,2305.5,2305.4,4.23148347]
[1726482649250,4.33728,2305.6,2305.4,4.23148347]
[1726482649440,4.33768,2305.4,2305.2,4.23148347]
[1726482649669,4.33745,2305.5,2305.2,4.23148347]
[1726482650047,4.33745,2305.5,2305.0,7.0200087]
[1726482650289,4.338,2305.3,2305.1,1.13584587]
[1726482650454,3.0,2305.9,2304.7,2.2514]
[1726482650455,4.33832,2305.1,2304.7,2.2514]
[1726482650675,4.33858,2304.9,2304.5,2.2918115]
[1726482651048,4.33879,2304.8,2304.5,2.2918115]
[1726482651400,4.33909,2304.7,2304.5,0.0404115]
[1726482651602,8.67828,2304.6,2304.5,0.0404115]
[1726482651913,9.546108,2304.6,2304.5,0.0404115]
[1726482652197,8.67828,2304.6,2304.5,0.0404115]
[1726482652363,4.33914,2304.6,2304.5,0.0404115]
[1726482652566,4.33851,2305.0,2304.6,2.3056]
[1726482652907,4.33851,2305.0,2304.7,4.90000662]
[1726482655031,4.33811,2305.2,2304.7,9.23895662]
[1726482655192,7.33776,2305.4,2304.9,4.23148347]
[1726482655391,4.33824,2305.1,2304.8,1.16313258]
[1726482655626,4.33792,2305.3,2304.7,4.31824718]
[1726482655827,4.33792,2305.3,2304.8,1.18304843]
[1726482656100,4.33783,2305.3,2304.6,2.3056]
[1726482656307,4.33887,2304.8,2304.5,0.0404115]
[1726482656602,4.33909,2304.7,2304.5,0.0404115]
[1726482658338,8.67828,2304.6,2304.5,0.0404115]
[1726482658757,13.01742,2304.6,2304.5,0.0404115]
[1726482658958,21.658302,2304.6,2304.5,0.0404115]
[1726482659117,30.22892547,2304.6,2304.5,0.0404115]
[1726482659315,21.658302,2304.6,2304.5,0.0404115]
[1726482659916,17.319162,2304.6,2304.5,0.0404115]
[1726482660318,11.67828,2304.6,2304.5,0.0404115]
[1726482660618,16.01742,2304.6,2304.5,0.0404115]
[1726482661832,11.67828,2304.6,2304.5,0.0404115]
[1726482664963,16.01742,2304.6,2304.5,0.0404115]
[1726482665270,11.67828,2304.6,2304.5,0.0404115]
[1726482665466,17.185248,2304.6,2304.5,0.0404115]
[1726482665776,12.846108,2304.6,2304.5,0.0404115]
[1726482666332,17.185248,2304.6,2304.5,0.0404115]
[1726482666838,12.846108,2304.6,2304.5,0.0404115]
[1726482668068,11.67828,2304.6,2304.5,0.0404115]
[1726482670475,4.33914,2304.6,2304.5,0.0404115]
[1726482670657,4.33897,2304.7,2304.5,0.0404115]
[1726482674467,4.33914,2304.6,2304.5,0.0404115]
[1726482675063,8.67808,2304.7,2304.5,0.0404115]
[1726482675583,4.33897,2304.7,2304.5,0.0404115]
[1726482675899,4.33875,2304.9,2304.5,0.0404115]
[1726482676094,4.33836,2305.1,2304.5,0.0404115]
[1726482676095,4.33833,2305.1,2304.6,6.77843]
[1726482676242,4.33848,2305.0,2304.6,6.77843]
[1726482677080,4.33848,2305.0,2304.6,2.4394]
[1726482677421,4.33848,2305.0,2304.7,0.73524799]
[1726482677934,11.80817,2305.2,2304.7,0.73524799]
[1726482677935,4.33823,2305.1,2304.7,0.73524799]
[1726482678305,4.33823,2305.1,2304.7,5.07407799]
[1726482678515,4.33823,2305.1,2304.7,5.16084784]
[1726482678812,4.33823,2305.1,2304.8,1.19392778]
[1726482679338,4.33849,2305.0,2304.8,1.19392778]
[1726482679618,4.33849,2305.0,2304.7,0.73524799]
[1726482680630,4.33816,2305.2,2304.7,0.73524799]
[1726482680631,4.33868,2304.9,2304.7,0.73524799]
[1726482681538,4.33842,2305.0,2304.7,0.73524799]
[1726482682048,4.33824,2305.1,2304.8,0.3174648]
[1726482682897,4.33805,2305.2,2304.8,0.3174648]
[1726482683097,4.33827,2305.1,2304.8,0.3174648]
[1726482683341,4.33827,2305.1,2304.7,0.73524799]
[1726482683495,4.33853,2305.0,2304.7,0.73524799]
[1726482683709,4.33853,2305.0,2304.6,2.4394]
[1726482684540,7.338,2305.3,2304.8,4.33872]
[1726482684771,4.3377,2305.4,2305.1,2.3006]
[1726482685176,4.33786,2305.3,2305.1,2.3006]
[1726482685335,4.33801,2305.2,2305.1,2.3006]
[1726482685528,4.33801,2305.2,2304.9,2.3745]
[1726482685751,4.33837,2305.1,2304.9,3.2856412]
[1726482685959,4.33834,2305.1,2304.7,2.4648]
[1726482686140,4.33874,2304.9,2304.7,2.4648]
[1726482688435,4.33877,2304.8,2304.7,2.4648]
[1726482688744,4.33874,2304.9,2304.5,2.5294115]
[1726482688745,4.3386,2304.9,2304.5,2.5294115]
[1726482688951,4.3386,2304.9,2304.6,1.5439755]
[1726482690001,4.33895,2304.7,2304.6,1.5439755]
[1726482690296,4.33895,2304.7,2304.5,2.5294115]
[1726482690687,4.33914,2304.6,2304.5,2.5294115]
[1726482691456,4.33914,2304.6,2304.5,0.0404115]
[1726482691668,16.88524,2304.6,2304.5,0.0404115]
[1726482691881,20.24890347,2304.6,2304.5,0.0404115]
[1726482692880,16.01742,2304.6,2304.5,0.0404115]
[1726482693104,20.24890347,2304.6,2304.5,0.0404115]
[1726482693275,24.58804347,2304.6,2304.5,0.0404115]
[1726482693472,26.66708326,2304.6,2304.5,0.0404115]
[1726482694272,22.32794326,2304.6,2304.5,0.0404115]
[1726482694605,26.66708326,2304.6,2304.5,0.0404115]
[1726482698085,26.66708326,2304.6,2303.5,0.0382892]
[1726482698086,4.34073,2303.8,2303.5,0.0382892]
[1726482698290,8.6815,2303.8,2303.5,0.76228582]
[1726482698514,4.34085,2303.7,2303.5,0.76228582]
[1726482698711,4.34073,2303.8,2303.5,0.0976079]
[1726482701133,4.34087,2303.7,2303.5,0.0976079]
[1726482701332,8.68156,2303.8,2303.5,0.0976079]
[1726482701627,4.34073,2303.8,2303.5,0.76821769]
[1726482701828,8.68147,2303.8,2303.5,0.76821769]
[1726482702036,4.34073,2303.8,2303.5,0.76821769]
[1726482702939,4.34073,2303.8,2303.6,0.30351177]
[1726482705317,8.68149,2303.8,2303.6,0.30351177]
[1726482705704,4.34084,2303.7,2303.6,0.30351177]
[1726482706015,4.34084,2303.7,2303.5,0.76821769]
[1726482706218,4.34073,2303.8,2303.5,0.76821769]
[1726482707232,8.68148,2303.8,2303.5,0.76821769]
[1726482710044,8.68151,2303.8,2303.5,0.76821769]
[1726482710441,8.68147,2303.8,2303.5,0.76821769]
[1726482710654,4.34073,2303.8,2303.5,0.76821769]
[1726482711445,4.34086,2303.7,2303.5,0.76821769]
[1726482713357,4.34086,2303.7,2303.5,0.0976079]
[1726482714658,4.34103,2303.6,2303.5,0.0976079]
[1726482714916,8.68206,2303.6,2303.5,0.0976079]